fUSD/lending_fUSD_20240517
["ID","MTS","AMOUNT","RATE_DAILY","PERIOD"]
[327282169,1715959852047,-607.48,0.00012999,2]
[327282170,1715959852056,-607.48,0.00012999,2]
[327282171,1715959852066,-607.48,0.00012999,2]
[327282172,1715959852075,-607.48,0.00012999,2]
[327282173,1715959852084,-607.48,0.00012999,2]
[327282174,1715959852094,-607.48,0.00012999,2]
[327282175,1715959852104,-607.48,0.00012999,2]
[327282176,1715959852114,-607.48,0.00012999,2]
[327282177,1715959852123,-607.48,0.00012999,2]
[327282178,1715959852132,-607.48,0.00012999,2]
[327282179,1715959852141,-607.48,0.00012999,2]
[327282180,1715959852150,-607.61333208,0.00012999,2]
[327282181,1715959852159,-500.0,0.00012999,2]
[327282182,1715959852168,-500.0,0.00012999,2]
[327282183,1715959852177,-609.52185783,0.00012999,2]
[327282184,1715959852186,-500.0,0.00012999,2]
[327282185,1715959852195,-654807.10569524,0.00013,2]
[327282186,1715959852208,-2049.81753476,0.00013,2]
[327282187,1715959852219,-16634.39573767,0.00013,2]
[327282188,1715959852230,-3351.2479,0.00013,2]
[327282189,1715959852241,-41976.37418644,0.00013,2]
[327282190,1715959852252,-168166.79858997,0.00013,2]
[327282191,1715959852263,-13049.44197325,0.00013,2]
[327282192,1715959852276,-2447.94336982,0.00013,2]
[327282193,1715959852287,-2504.56325768,0.00013,2]
[327282194,1715959852299,-3239.46421203,0.00013,2]
[327282195,1715959852323,-8343.16555557,0.00013,2]
[327282196,1715959852376,-1090.28780428,0.00012847,2]
[327282197,1715959852386,-5630.82759572,0.00013,2]
[327282198,1715959852397,-93126.44838585,0.00013,2]
[327282199,1715959852408,-680.24367928,0.00013,2]
[327282200,1715959852419,-320.35269499,0.00013,2]
[327282201,1715959852431,-526.05039617,0.00013,2]
[327282202,1715959852442,-4664.0769246,0.00013,2]
[327282203,1715959852454,-5067.04199488,0.00013,2]
[327282204,1715959852507,-141081.36263273,0.00013,2]
[327282205,1715959852518,-900.40039728,0.00013,2]
[327282206,1715959852546,-26968.84220602,0.00012144,2]
[327282207,1715959852557,-1654.000128,0.00012144,2]
[327282208,1715959852951,-14674.9534772,0.00012144,2]
[327282209,1715959852961,-34635.06822618,0.00013,2]
[327282210,1715959852970,-397468.28730043,0.00013,2]
[327282211,1715959852984,-182594.97273057,0.00013,2]
[327282240,1715960520484,645.13,8.424e-05,2]
[327282241,1715960573201,-1500.0,0.00023628,120]
[327282242,1715960573549,-3569.56195047,0.00024,120]
[327282248,1715960877911,-155.0,9.641e-05,2]
[327282249,1715960877935,-500.0,9.641e-05,2]
[327282250,1715960877960,-528.89107467,9.642e-05,2]
[327282251,1715960877987,-540.73712482,9.642e-05,2]
[327282252,1715960878011,-817.97346777,9.642e-05,2]
[327282253,1715960878036,-25836.39833274,9.642e-05,2]
[327282264,1715960975703,620.49,8.219e-05,2]
[327282303,1715961031584,-1141.22355867,9.642e-05,2]
[327282306,1715961031597,-387.51100691,9.642e-05,2]
[327282307,1715961031644,-689.30241408,9.642e-05,2]
[327282308,1715961031657,-670.45812629,9.642e-05,2]
[327282309,1715961031669,-1400.0,9.642e-05,2]
[327282310,1715961031681,-519.01089523,9.642e-05,2]
[327282311,1715961031692,-2245.43580064,9.642e-05,2]
[327282312,1715961031814,-286.18192272,9.642e-05,2]
[327282313,1715961031826,-8577.16526559,9.642e-05,2]
[327282314,1715961031839,-1545.10848835,9.642e-05,2]
[327282315,1715961031850,-150.0,9.642e-05,2]
[327282316,1715961031859,-150.0,9.642e-05,2]
[327282317,1715961031868,-150.0,9.642e-05,2]
[327282318,1715961031879,-150.82864206,9.642e-05,2]
[327282319,1715961031888,-447.98,9.809e-05,2]
[327282320,1715961031897,-1500.0,9.844e-05,2]
[327282321,1715961031907,-250.0,0.0001017,2]
[327282322,1715961032135,-1165.31,0.00010316,2]
[327282323,1715961032145,-234.19,0.00010387,2]
[327282324,1715961032156,-989.67733406,0.00010392,2]
[327282325,1715961032169,-696.77431602,0.00010392,2]
[327282326,1715961032186,-165.96834992,0.00010392,2]
[327282327,1715961032195,-163.36,0.00010395,2]
[327282328,1715961032205,-150.0,0.00010438,2]
[327282329,1715961032214,-170.1,0.00010465,2]
[327282330,1715961032223,-620.49,0.00010466,2]
[327282331,1715961032235,-26.04030697,0.0001047,2]
[327282332,1715961032246,-399.74217724,0.0001047,2]
[327282333,1715961032258,-865.61751579,0.0001047,2]
[327282334,1715961032267,-250.0,0.00010471,2]
[327282335,1715961032276,-439.08,0.00010471,2]
[327282336,1715961032285,-170.1,0.00010494,2]
[327282337,1715961032295,-170.1,0.00010522,2]
[327282338,1715961032305,-170.1,0.00010551,2]
[327282339,1715961032315,-552.02,0.00010553,2]
[327282340,1715961032325,-1832.02512248,0.00010562,2]
[327282341,1715961032334,-170.1,0.0001058,2]
[327282342,1715961032343,-170.1,0.00010608,2]
[327282343,1715961032352,-869.18,0.00010622,2]
[327282344,1715961032361,-170.1,0.00010637,2]
[327282345,1715961032370,-170.1,0.00010666,2]
[327282346,1715961032380,-170.1,0.00010695,2]
[327282347,1715961032389,-178.02,0.0001072,2]
[327282348,1715961032398,-170.1,0.00010723,2]
[327282349,1715961032407,-170.1,0.00010752,2]
[327282350,1715961032416,-170.0,0.00010755,2]
[327282351,1715961032425,-523.5502,0.00010778,2]
[327282352,1715961032434,-27970.51341857,0.00010778,2]
[327282353,1715961032446,-1005.558445,0.00010778,2]
[327282354,1715961032457,-3381.94813142,0.00010778,2]
[327282355,1715961032468,-434.33736611,0.00010778,2]
[327282356,1715961032480,-1123.20680673,0.00010778,2]
[327282357,1715961032491,-2359.58374539,0.00010778,2]
[327282358,1715961032503,-544.86452553,0.00010778,2]
[327282359,1715961032514,-3071.92,0.00010778,2]
[327282362,1715961038331,-1655.88349246,0.00010778,2]
[327282363,1715961038494,-1386.73212841,0.00010778,2]
[327282364,1715961038506,-526.2019099,0.00010778,2]
[327282365,1715961038527,-296.96918734,0.00010778,2]
[327282366,1715961038539,-977.69249947,0.00010778,2]
[327282367,1715961038551,-708.7166173,0.00010778,2]
[327282368,1715961038564,-18152.14129202,0.00010778,2]
[327282369,1715961038575,-1072.76923435,0.00010778,2]
[327282370,1715961038586,-499.99,0.00010778,2]
[327282371,1715961038597,-170.1,0.00010781,2]
[327282372,1715961038607,-170.1,0.00010809,2]
[327282373,1715961038616,-170.1,0.00010838,2]
[327282374,1715961038626,-170.1,0.00010867,2]
[327282375,1715961038638,-170.1,0.00010896,2]
[327282376,1715961038648,-170.1,0.00010924,2]
[327282377,1715961038659,-170.1,0.00010953,2]
[327282378,1715961038670,-210.01797512,0.00010959,2]
[327282379,1715961038682,-633.07202488,0.00010959,2]
[327282380,1715961038692,-185.76,0.00010959,2]
[327282381,1715961038703,-154.8,0.00010959,2]
[327282382,1715961038713,-774.04,0.00010959,2]
[327282384,1715961038723,-170.1,0.00010982,2]
[327282385,1715961038733,-3000.0,0.00011,2]
[327282387,1715961038747,-170.1,0.0001101,2]
[327282389,1715961038757,-447.98,0.00011036,2]
[327282391,1715961038766,-182.26,0.00011085,2]
[327282393,1715961038776,-59580.33865819,0.0001118,2]
[327282395,1715961038786,-1000.0,0.00011596,2]
[327282397,1715961038795,-5128.3145,0.00011596,2]
[327282398,1715961038804,-817.97346777,0.00011685,2]
[327282400,1715961038814,-155.0,0.00011695,2]
[327282402,1715961038823,-145338.4746,0.00011696,2]
[327282404,1715961038832,-155.58993981,0.00011698,2]
[327282406,1715961038845,-749.98609132,0.00011698,2]
[327282408,1715961038855,-206.7616193,0.00011772,2]
[327282409,1715961038865,-100000.0,0.00011796,2]
[327282411,1715961038874,-552.02,0.00011872,2]
[327282412,1715961038883,-22365.77357681,0.00011898,2]
[327282413,1715961038894,-22365.77357672,0.00011898,2]
[327282414,1715961038903,-22365.77357672,0.00011898,2]
[327282415,1715961038913,-22365.77357672,0.00011964,2]
[327282416,1715961038924,-3000.0,0.00012,2]
[327282417,1715961038934,-3673.822,0.00012058,2]
[327282418,1715961038943,-19999.99,0.00012087,2]
[327282419,1715961038953,-4417.99,0.00012087,2]
[327282420,1715961038963,-23790.34,0.00012087,2]
[327282421,1715961038972,-1136.2894166,0.00012199,2]
[327282422,1715961038982,-447.98,0.00012262,2]
[327282423,1715961038991,-1078.0,0.0001228,2]
[327282424,1715961039000,-242.958798,0.00012315,2]
[327282425,1715961039009,-157.600653,0.00012315,2]
[327282426,1715961039019,-166.902637,0.00012315,2]
[327282427,1715961039029,-249.434297,0.00012315,2]
[327282428,1715961039040,-162.816812,0.00012315,2]
[327282430,1715961039050,-181.571215,0.00012315,2]
[327282431,1715961039061,-235.911291,0.00012315,2]
[327282433,1715961039070,-162.816812,0.00012315,2]
[327282434,1715961039080,-176.933466,0.00012315,2]
[327282436,1715961039090,-162.816812,0.00012315,2]
[327282438,1715961039101,-212.95786766,0.00012318,2]
[327282440,1715961039111,-500.0,0.00012328,2]
[327282443,1715961039122,-500.0,0.00012328,2]
[327282445,1715961039131,-500.0,0.00012328,2]
[327282447,1715961039140,-500.0,0.00012328,2]
[327282449,1715961039151,-500.0,0.00012328,2]
[327282451,1715961039160,-500.0,0.00012328,2]
[327282453,1715961039171,-500.0,0.00012328,2]
[327282455,1715961039180,-500.0,0.00012328,2]
[327282457,1715961039189,-500.0,0.00012328,2]
[327282458,1715961039199,-154.87797704,0.00012328,2]
[327282460,1715961039208,-545.79544186,0.00012328,2]
[327282463,1715961039218,-502.84980496,0.00012328,2]
[327282465,1715961039228,-292.39699806,0.00012328,2]
[327282467,1715961039240,-500.0,0.00012328,2]
[327282469,1715961039250,-500.0,0.00012328,2]
[327282471,1715961039259,-500.0,0.00012328,2]
[327282473,1715961039269,-500.0,0.00012328,2]
[327282475,1715961039278,-500.0,0.00012328,2]
[327282477,1715961039287,-495.41155204,0.00012328,2]
[327282479,1715961039297,-500.0,0.00012328,2]
[327282481,1715961039306,-500.0,0.00012328,2]
[327282483,1715961039315,-500.0,0.00012328,2]
[327282485,1715961039325,-500.0,0.00012328,2]
[327282487,1715961039334,-500.0,0.00012328,2]
[327282490,1715961039344,-500.0,0.00012328,2]
[327282493,1715961039354,-500.0,0.00012328,2]
[327282496,1715961039367,-614.98,0.00012328,2]
[327282499,1715961039376,-500.0,0.00012328,2]
[327282502,1715961039386,-500.0,0.00012328,2]
[327282505,1715961039396,-3000.0,0.00012328,2]
[327282508,1715961039405,-3000.0,0.00012328,2]
[327282511,1715961039415,-3000.0,0.00012328,2]
[327282514,1715961039426,-3000.0,0.00012328,2]
[327282517,1715961039436,-3000.0,0.00012328,2]
[327282520,1715961039446,-3000.0,0.00012328,2]
[327282523,1715961039456,-3000.0,0.00012328,2]
[327282526,1715961039466,-500.0,0.00012328,2]
[327282528,1715961039476,-3000.0,0.00012328,2]
[327282530,1715961039487,-321.11,0.00012328,2]
[327282532,1715961039497,-500.0,0.00012328,2]
[327282535,1715961039507,-476.22,0.00012328,2]
[327282537,1715961039517,-565.42388381,0.00012328,2]
[327282539,1715961039527,-500.0,0.00012328,2]
[327282540,1715961039536,-500.0,0.00012328,2]
[327282543,1715961039546,-500.0,0.00012328,2]
[327282544,1715961039556,-500.0,0.00012328,2]
[327282545,1715961039566,-500.0,0.00012328,2]
[327282547,1715961039575,-539.07498699,0.00012328,2]
[327282549,1715961039585,-500.0,0.00012328,2]
[327282551,1715961039595,-517.53911763,0.00012328,2]
[327282552,1715961039605,-500.0,0.00012328,2]
[327282553,1715961039615,-500.0,0.00012328,2]
[327282554,1715961039625,-500.0,0.00012328,2]
[327282555,1715961039635,-322.44,0.00012328,2]
[327282556,1715961039645,-500.0,0.00012328,2]
[327282557,1715961039655,-500.0,0.00012328,2]
[327282558,1715961039665,-500.0,0.00012328,2]
[327282559,1715961039675,-500.0,0.00012328,2]
[327282560,1715961039685,-500.0,0.00012328,2]
[327282561,1715961039694,-500.0,0.00012328,2]
[327282563,1715961039704,-525.70558155,0.00012328,2]
[327282565,1715961039714,-500.0,0.00012328,2]
[327282567,1715961039723,-500.0,0.00012328,2]
[327282569,1715961039735,-500.0,0.00012328,2]
[327282572,1715961039744,-500.0,0.00012328,2]
[327282573,1715961039754,-500.0,0.00012328,2]
[327282575,1715961039763,-500.0,0.00012328,2]
[327282577,1715961039772,-500.0,0.00012328,2]
[327282580,1715961039782,-500.0,0.00012328,2]
[327282582,1715961039792,-500.0,0.00012328,2]
[327282584,1715961039801,-500.0,0.00012328,2]
[327282586,1715961039811,-500.0,0.00012328,2]
[327282587,1715961039820,-552.53707672,0.00012328,2]
[327282590,1715961039830,-500.0,0.00012328,2]
[327282592,1715961039840,-500.0,0.00012328,2]
[327282594,1715961039852,-500.0,0.00012328,2]
[327282596,1715961039862,-500.0,0.00012328,2]
[327282598,1715961039871,-500.0,0.00012328,2]
[327282599,1715961039880,-500.0,0.00012328,2]
[327282601,1715961039890,-500.0,0.00012328,2]
[327282603,1715961039901,-500.0,0.00012328,2]
[327282605,1715961039910,-1622.45,0.00012328,2]
[327282606,1715961039919,-500.0,0.00012328,2]
[327282607,1715961039932,-1622.45,0.00012328,2]
[327282608,1715961039943,-500.0,0.00012328,2]
[327282609,1715961039952,-598.17615426,0.00012328,2]
[327282611,1715961039961,-500.0,0.00012328,2]
[327282613,1715961039971,-500.0,0.00012328,2]
[327282615,1715961039980,-500.0,0.00012328,2]
[327282617,1715961039991,-500.0,0.00012328,2]
[327282619,1715961040001,-641.2,0.00012328,2]
[327282621,1715961040010,-500.0,0.00012328,2]
[327282623,1715961040019,-365.61377436,0.00012328,2]
[327282625,1715961040029,-500.0,0.00012328,2]
[327282627,1715961040038,-500.0,0.00012328,2]
[327282629,1715961040047,-500.0,0.00012328,2]
[327282631,1715961040057,-500.0,0.00012328,2]
[327282633,1715961040065,-500.0,0.00012328,2]
[327282635,1715961040075,-500.0,0.00012328,2]
[327282637,1715961040085,-486.47215029,0.00012328,2]
[327282639,1715961040094,-311.61582648,0.00012328,2]
[327282641,1715961040104,-181.60525624,0.00012328,2]
[327282643,1715961040113,-150.14887771,0.00012328,2]
[327282645,1715961040123,-500.0,0.00012328,2]
[327282647,1715961040132,-500.0,0.00012328,2]
[327282649,1715961040142,-500.0,0.00012328,2]
[327282651,1715961040150,-500.0,0.00012328,2]
[327282653,1715961040160,-395.77,0.00012328,2]
[327282655,1715961040169,-500.0,0.00012328,2]
[327282657,1715961040179,-500.0,0.00012328,2]
[327282659,1715961040188,-500.0,0.00012328,2]
[327282661,1715961040198,-500.0,0.00012328,2]
[327282663,1715961040207,-500.0,0.00012328,2]
[327282665,1715961040216,-500.0,0.00012328,2]
[327282667,1715961040226,-958.61,0.00012328,2]
[327282669,1715961040239,-958.61,0.00012328,2]
[327282671,1715961040248,-958.61,0.00012328,2]
[327282673,1715961040257,-278.5,0.00012328,2]
[327282675,1715961040266,-500.0,0.00012328,2]
[327282677,1715961040275,-500.0,0.00012328,2]
[327282679,1715961040284,-500.0,0.00012328,2]
[327282681,1715961040295,-500.0,0.00012328,2]
[327282683,1715961040304,-500.0,0.00012328,2]
[327282685,1715961040314,-500.0,0.00012328,2]
[327282686,1715961040323,-500.0,0.00012328,2]
[327282687,1715961040334,-500.0,0.00012328,2]
[327282688,1715961040344,-500.0,0.00012328,2]
[327282689,1715961040354,-500.0,0.00012328,2]
[327282690,1715961040364,-500.0,0.00012328,2]
[327282691,1715961040374,-500.0,0.00012328,2]
[327282692,1715961040384,-546.26,0.00012328,2]
[327282693,1715961040394,-270.25,0.00012328,2]
[327282694,1715961040403,-500.0,0.00012328,2]
[327282695,1715961040413,-500.0,0.00012328,2]
[327282696,1715961040422,-500.0,0.00012328,2]
[327282697,1715961040432,-500.0,0.00012328,2]
[327282698,1715961040442,-3000.0,0.00012328,2]
[327282699,1715961040452,-3000.0,0.00012328,2]
[327282700,1715961040462,-169.32460103,0.00012328,2]
[327282701,1715961040472,-1315.06,0.00012328,2]
[327282702,1715961040482,-1315.06,0.00012328,2]
[327282703,1715961040492,-1315.06,0.00012328,2]
[327282704,1715961040502,-500.0,0.00012328,2]
[327282705,1715961040512,-500.0,0.00012328,2]
[327282706,1715961040523,-500.0,0.00012328,2]
[327282707,1715961040532,-500.0,0.00012328,2]
[327282708,1715961040542,-500.0,0.00012328,2]
[327282709,1715961040551,-500.0,0.00012328,2]
[327282710,1715961040562,-500.0,0.00012328,2]
[327282712,1715961040572,-500.0,0.00012328,2]
[327282714,1715961040581,-500.0,0.00012328,2]
[327282716,1715961040591,-500.0,0.00012328,2]
[327282718,1715961040601,-295.63,0.00012328,2]
[327282720,1715961040611,-500.0,0.00012328,2]
[327282722,1715961040622,-500.0,0.00012328,2]
[327282724,1715961040632,-336.71280473,0.00012328,2]
[327282726,1715961040642,-500.0,0.00012328,2]
[327282728,1715961040652,-500.0,0.00012328,2]
[327282730,1715961040662,-500.0,0.00012328,2]
[327282732,1715961040672,-500.0,0.00012328,2]
[327282734,1715961040682,-500.0,0.00012328,2]
[327282736,1715961040692,-500.0,0.00012328,2]
[327282739,1715961040701,-326.69654485,0.00012328,2]
[327282743,1715961040729,-173.30345515,0.00012328,2]
[327282745,1715961040740,-238.42269745,0.00012328,2]
[327282747,1715961040751,-261.57730255,0.00012328,2]
[327282749,1715961040760,-225.75,0.00012328,2]
[327282751,1715961040770,-500.0,0.00012328,2]
[327282753,1715961040779,-500.0,0.00012328,2]
[327282755,1715961040788,-500.0,0.00012328,2]
[327282757,1715961040798,-158.3,0.00012328,2]
[327282759,1715961040808,-500.0,0.00012328,2]
[327282761,1715961040817,-500.0,0.00012328,2]
[327282763,1715961040827,-500.0,0.00012328,2]
[327282765,1715961040836,-500.0,0.00012328,2]
[327282767,1715961040851,-500.0,0.00012328,2]
[327282769,1715961040861,-500.0,0.00012328,2]
[327282771,1715961040871,-500.0,0.00012328,2]
[327282773,1715961040880,-500.0,0.00012328,2]
[327282775,1715961040891,-500.0,0.00012328,2]
[327282777,1715961040900,-500.0,0.00012328,2]
[327282779,1715961040909,-500.0,0.00012328,2]
[327282781,1715961040919,-500.0,0.00012328,2]
[327282783,1715961040931,-500.0,0.00012328,2]
[327282785,1715961040941,-500.0,0.00012328,2]
[327282787,1715961040950,-500.0,0.00012328,2]
[327282788,1715961040959,-500.0,0.00012328,2]
[327282790,1715961040969,-500.0,0.00012328,2]
[327282792,1715961040978,-500.0,0.00012328,2]
[327282794,1715961040988,-259.90980394,0.00012328,2]
[327282796,1715961040998,-500.0,0.00012328,2]
[327282798,1715961041007,-500.0,0.00012328,2]
[327282800,1715961041016,-500.0,0.00012328,2]
[327282802,1715961041025,-500.0,0.00012328,2]
[327282804,1715961041034,-500.0,0.00012328,2]
[327282806,1715961041044,-500.0,0.00012328,2]
[327282808,1715961041053,-500.0,0.00012328,2]
[327282810,1715961041062,-500.0,0.00012328,2]
[327282812,1715961041071,-500.0,0.00012328,2]
[327282814,1715961041081,-500.0,0.00012328,2]
[327282816,1715961041090,-500.0,0.00012328,2]
[327282818,1715961041099,-500.0,0.00012328,2]
[327282820,1715961041108,-500.0,0.00012328,2]
[327282822,1715961041118,-500.0,0.00012328,2]
[327282824,1715961041127,-500.0,0.00012328,2]
[327282826,1715961041136,-500.0,0.00012328,2]
[327282828,1715961041145,-500.0,0.00012328,2]
[327282830,1715961041154,-500.0,0.00012328,2]
[327282832,1715961041163,-500.0,0.00012328,2]
[327282834,1715961041173,-500.0,0.00012328,2]
[327282836,1715961041182,-500.0,0.00012328,2]
[327282837,1715961041191,-500.0,0.00012328,2]
[327282840,1715961041201,-500.0,0.00012328,2]
[327282841,1715961041211,-500.0,0.00012328,2]
[327282842,1715961041221,-500.0,0.00012328,2]
[327282843,1715961041230,-500.0,0.00012328,2]
[327282844,1715961041241,-500.0,0.00012328,2]
[327282845,1715961041250,-500.0,0.00012328,2]
[327282846,1715961041260,-501.13943431,0.00012328,2]
[327282847,1715961041269,-625.52,0.00012328,2]
[327282848,1715961041279,-500.0,0.00012328,2]
[327282849,1715961041288,-500.0,0.00012328,2]
[327282850,1715961041298,-500.0,0.00012328,2]
[327282851,1715961041308,-500.0,0.00012328,2]
[327282852,1715961041317,-500.0,0.00012328,2]
[327282853,1715961041327,-500.0,0.00012328,2]
[327282854,1715961041336,-500.0,0.00012328,2]
[327282855,1715961041346,-500.0,0.00012328,2]
[327282856,1715961041355,-500.0,0.00012328,2]
[327282857,1715961041365,-500.0,0.00012328,2]
[327282858,1715961041374,-500.0,0.00012328,2]
[327282859,1715961041384,-500.0,0.00012328,2]
[327282860,1715961041393,-208.2898989,0.00012328,2]
[327282861,1715961041403,-500.0,0.00012328,2]
[327282862,1715961041412,-548.65,0.00012328,2]
[327282863,1715961041422,-304.62124792,0.00012328,2]
[327282864,1715961041431,-500.0,0.00012328,2]
[327282865,1715961041440,-500.0,0.00012328,2]
[327282866,1715961041449,-500.0,0.00012328,2]
[327282867,1715961041459,-500.0,0.00012328,2]
[327282868,1715961041469,-500.0,0.00012328,2]
[327282869,1715961041478,-500.0,0.00012328,2]
[327282870,1715961041489,-4895.0,0.0001233,2]
[327282871,1715961041498,-1315.06,0.00012405,2]
[327282872,1715961041507,-500.0,0.00012405,2]
[327282873,1715961041517,-500.0,0.00012405,2]
[327282874,1715961041526,-500.0,0.00012405,2]
[327282875,1715961041535,-500.0,0.00012405,2]
[327282876,1715961041545,-500.0,0.00012405,2]
[327282877,1715961041554,-500.0,0.00012405,2]
[327282878,1715961041564,-228.40110083,0.00012405,2]
[327282879,1715961041573,-150.0,0.0001241,2]
[327282880,1715961041583,-150.0,0.0001241,3]
[327282881,1715961041592,-500.0,0.00012435,2]
[327282882,1715961041601,-402.82503361,0.00012435,2]
[327282883,1715961041610,-1622.45,0.00012435,2]
[327282884,1715961041620,-500.0,0.00012435,2]
[327282885,1715961041629,-3000.0,0.00012435,2]
[327282886,1715961041786,-533.04,0.00012435,2]
[327282887,1715961041822,-645.36,0.00012435,2]
[327282888,1715961041834,-447.42,0.00012435,2]
[327282889,1715961041845,-500.0,0.00012435,2]
[327282890,1715961041858,-150.0,0.00012464,2]
[327282891,1715961041868,-166.902637,0.00012469,2]
[327282892,1715961041878,-249.434297,0.00012469,2]
[327282893,1715961041889,-3701.854,0.00012498,2]
[327282894,1715961041900,-1005.22632889,0.000125,2]
[327282895,1715961041910,-176.933466,0.00012521,2]
[327282896,1715961041921,-500.0,0.00012621,2]
[327282897,1715961041930,-500.0,0.00012621,2]
[327282898,1715961041940,-315.79,0.00012621,2]
[327282899,1715961041950,-500.0,0.00012621,2]
[327282900,1715961041960,-500.0,0.00012621,2]
[327282901,1715961041969,-500.0,0.00012621,2]
[327282902,1715961041979,-500.0,0.00012621,2]
[327282903,1715961041990,-500.0,0.00012621,2]
[327282904,1715961042000,-500.0,0.00012621,2]
[327282905,1715961042010,-166.902637,0.00012623,2]
[327282906,1715961042020,-249.434297,0.00012623,2]
[327282907,1715961042029,-471.67101494,0.00012675,2]
[327282908,1715961042039,-4968.09665935,0.0001268,2]
[327282909,1715961042049,-198.67192209,0.00012699,2]
[327282910,1715961042060,-173.5915285,0.000127,2]
[327282911,1715961042069,-1564.36069654,0.000127,2]
[327282912,1715961042079,-620.49,0.00012713,2]
[327282913,1715961042089,-176.933466,0.00012726,2]
[327282914,1715961042098,-789.21148886,0.00012734,2]
[327282915,1715961042108,-166.902637,0.00012777,2]
[327282916,1715961042117,-249.434297,0.00012777,2]
[327282917,1715961042127,-164.3,0.0001279,2]
[327282918,1715961042136,-164.3,0.0001279,2]
[327282919,1715961042146,-164.3,0.0001279,2]
[327282920,1715961042155,-164.3,0.0001279,2]
[327282921,1715961042167,-164.3,0.0001279,2]
[327282922,1715961042176,-164.3,0.0001279,2]
[327282923,1715961042185,-164.3,0.0001279,2]
[327282924,1715961042195,-164.3,0.0001279,2]
[327282925,1715961042204,-164.3,0.0001279,2]
[327282926,1715961042214,-182.55439712,0.00012795,2]
[327282927,1715961042224,-296.96918734,0.00012795,2]
[327282928,1715961042233,-299.26880595,0.00012795,2]
[327282929,1715961042242,-680.34498152,0.00012795,2]
[327282930,1715961042251,-500.0,0.00012796,2]
[327282931,1715961042261,-499.10795404,0.00012796,2]
[327282932,1715961042270,-500.0,0.00012796,2]
[327282933,1715961042280,-500.0,0.00012796,2]
[327282934,1715961042290,-500.0,0.00012796,2]
[327282935,1715961042299,-500.0,0.00012796,2]
[327282936,1715961042308,-1622.45,0.00012796,2]
[327282937,1715961042318,-500.0,0.00012796,2]
[327282938,1715961042327,-500.0,0.00012796,2]
[327282939,1715961042336,-958.61,0.00012796,2]
[327282940,1715961042346,-3000.0,0.00012796,2]
[327282941,1715961042356,-1315.06,0.00012796,2]
[327282942,1715961042365,-500.0,0.00012796,2]
[327282943,1715961042375,-500.0,0.00012796,2]
[327282944,1715961042386,-500.0,0.00012796,2]
[327282945,1715961042396,-500.0,0.00012796,2]
[327282946,1715961042405,-500.0,0.00012796,2]
[327282947,1715961042415,-500.0,0.00012796,2]
[327282948,1715961042425,-500.0,0.00012796,2]
[327282949,1715961042435,-330.90784165,0.00012796,2]
[327282951,1715961042444,-500.0,0.00012796,2]
[327282953,1715961042453,-500.0,0.00012796,2]
[327282955,1715961042462,-500.0,0.00012796,2]
[327282957,1715961042472,-500.0,0.00012796,2]
[327282958,1715961042481,-500.0,0.00012796,2]
[327282959,1715961042492,-348.31,0.00012796,2]
[327282960,1715961042502,-500.0,0.00012796,2]
[327282961,1715961042511,-500.0,0.00012796,2]
[327282962,1715961042521,-500.0,0.00012796,2]
[327282963,1715961042531,-500.0,0.00012796,2]